[Event "*** Titled Tuesday Blitz"]
[Site "Chess.com"]
[Date "2020.10.27"]
[Round "1"]
[White "MikaelyanArman"]
[Black "ajedrezsinlimites"]
[Result "1-0"]
[WhiteElo "2820"]
[BlackElo "2426"]
[TimeControl "180+1"]
[EndTime "10:08:39 PDT"]
[Termination "MikaelyanArman won by resignation"]

1. Nf3 {[%clk 0:03:00.9]} 1... Nf6 {[%clk 0:02:59.4]} 2. g3 {[%clk 0:03:01.2]}
2... e6 {[%clk 0:03:00.3]} 3. Bg2 {[%clk 0:03:01.2]} 3... b6 {[%clk 0:03:00.8]}
4. O-O {[%clk 0:03:02.1]} 4... Bb7 {[%clk 0:03:00.6]} 5. b3 {[%clk 0:03:02.2]}
5... Be7 {[%clk 0:03:00.1]} 6. Bb2 {[%clk 0:03:02.6]} 6... O-O {[%clk
0:02:59.8]} 7. c4 {[%clk 0:03:03.2]} 7... a5 {[%clk 0:02:58.5]} 8. Nc3 {[%clk
0:03:02.4]} 8... d5 {[%clk 0:02:57.8]} 9. cxd5 {[%clk 0:03:02.7]} 9... Nxd5
{[%clk 0:02:57.1]} 10. d4 {[%clk 0:03:00.9]} 10... Nd7 {[%clk 0:02:56.5]} 11.
Rc1 {[%clk 0:03:00.1]} 11... Rc8 {[%clk 0:02:55.8]} 12. Nxd5 {[%clk 0:02:53.7]}
12... Bxd5 {[%clk 0:02:54.4]} 13. Qd3 {[%clk 0:02:51.7]} 13... Nf6 {[%clk
0:02:51.4]} 14. Ne5 {[%clk 0:02:50]} 14... Bxg2 {[%clk 0:02:50.1]} 15. Kxg2
{[%clk 0:02:50.9]} 15... Qd5+ {[%clk 0:02:48.2]} 16. Qf3 {[%clk 0:02:49.7]}
16... c5 {[%clk 0:02:46]} 17. Qxd5 {[%clk 0:02:46.6]} 17... exd5 {[%clk
0:02:34.8]} 18. Rfd1 {[%clk 0:02:46.3]} 18... Rfd8 {[%clk 0:02:32.9]} 19. dxc5
{[%clk 0:02:44]} 19... bxc5 {[%clk 0:02:27]} 20. Nd3 {[%clk 0:02:44]} 20... c4
{[%clk 0:02:21.4]} 21. Nf4 {[%clk 0:02:40.3]} 21... cxb3 {[%clk 0:02:20.6]} 22.
axb3 {[%clk 0:02:41.2]} 22... Rxc1 {[%clk 0:02:16.1]} 23. Rxc1 {[%clk
0:02:42.1]} 23... d4 {[%clk 0:02:14.9]} 24. Rc7 {[%clk 0:02:35.7]} 24... Bd6
{[%clk 0:02:07.8]} 25. Ra7 {[%clk 0:02:35.4]} 25... Bxf4 {[%clk 0:02:06.6]} 26.
gxf4 {[%clk 0:02:36.3]} 26... h6 {[%clk 0:02:02]} 27. Rxa5 {[%clk 0:02:34.5]}
27... d3 {[%clk 0:01:55.9]} 28. exd3 {[%clk 0:02:31.2]} 28... Rxd3 {[%clk
0:01:54.9]} 29. Bxf6 {[%clk 0:01:56.7]} 29... gxf6 {[%clk 0:01:53]} 30. Rb5
{[%clk 0:01:57.1]} 30... Kg7 {[%clk 0:01:46.5]} 31. f3 {[%clk 0:01:36.9]} 31...
f5 {[%clk 0:01:44.1]} 32. Rb6 {[%clk 0:01:26]} 32... f6 {[%clk 0:01:40.8]} 33.
h4 {[%clk 0:01:06.2]} 33... h5 {[%clk 0:01:37.1]} 34. b4 {[%clk 0:01:02.2]}
34... Kg6 {[%clk 0:01:32.2]} 35. b5 {[%clk 0:01:02]} 35... Rd2+ {[%clk
0:01:30.6]} 36. Kg1 {[%clk 0:00:59.8]} 36... Rd4 {[%clk 0:01:28.2]} 37. Kg2
{[%clk 0:00:51.8]} 37... Rxf4 {[%clk 0:01:27.4]} 38. Kg3 {[%clk 0:00:51.8]}
38... Rb4 {[%clk 0:01:27.2]} 39. Rb8 {[%clk 0:00:34.8]} 39... f4+ {[%clk
0:01:24.4]} 40. Kf2 {[%clk 0:00:35.1]} 40... Rb2+ {[%clk 0:01:23.3]} 41. Ke1
{[%clk 0:00:32.5]} 41... Rb3 {[%clk 0:01:21.7]} 42. b6 {[%clk 0:00:30.5]} 42...
Kh7 {[%clk 0:01:18]} 43. Ke2 {[%clk 0:00:24.1]} 43... Kg7 {[%clk 0:01:16.4]} 44.
b7 {[%clk 0:00:20.4]} 44... Kh7 {[%clk 0:01:15.7]} 45. Kd2 {[%clk 0:00:20.7]}
45... Kg7 {[%clk 0:01:14.9]} 46. Kc2 {[%clk 0:00:21.1]} 46... Rb6 {[%clk
0:01:11.8]} 47. Kc3 {[%clk 0:00:21.4]} 47... Rb1 {[%clk 0:01:10.5]} 48. Kd4
{[%clk 0:00:21]} 48... Rb3 {[%clk 0:01:07.6]} 49. Kd5 {[%clk 0:00:19.8]} 49...
Rb1 {[%clk 0:01:05.4]} 50. Kd6 {[%clk 0:00:19.8]} 50... Rb2 {[%clk 0:00:59.8]}
51. Ke6 {[%clk 0:00:19.1]} 51... Rb5 {[%clk 0:00:56.8]} 52. Ke7 {[%clk
0:00:18.8]} 52... Rb1 {[%clk 0:00:54.3]} 53. Kd6 {[%clk 0:00:18.9]} 53... Rb2
{[%clk 0:00:52.9]} 54. Kd5 {[%clk 0:00:19]} 54... Rb1 {[%clk 0:00:52]} 55. Ke4
{[%clk 0:00:19.3]} 55... Rb4+ {[%clk 0:00:51.2]} 56. Kf5 {[%clk 0:00:19.7]}
56... Rb6 {[%clk 0:00:42.8]} 57. Kxf4 {[%clk 0:00:19.8]} 57... Rb4+ {[%clk
0:00:42.7]} 58. Kf5 {[%clk 0:00:19.5]} 58... Rb5+ {[%clk 0:00:42.6]} 59. Ke6
{[%clk 0:00:19.9]} 59... Rb1 {[%clk 0:00:40.9]} 60. f4 {[%clk 0:00:17.4]} 60...
Rb2 {[%clk 0:00:40.1]} 61. Kd5 {[%clk 0:00:14.4]} 61... Rb1 {[%clk 0:00:39.8]}
62. Kd6 {[%clk 0:00:14.7]} 62... Rd1+ {[%clk 0:00:39.1]} 63. Ke6 {[%clk
0:00:15.1]} 63... Rb1 {[%clk 0:00:38.2]} 64. Kf5 {[%clk 0:00:14.4]} 64... Rb5+
{[%clk 0:00:37.1]} 65. Ke6 {[%clk 0:00:14.5]} 65... Rb1 {[%clk 0:00:36.4]} 66.
Rd8 {[%clk 0:00:13.9]} 66... Rxb7 {[%clk 0:00:35.3]} 67. Rd7+ {[%clk 0:00:13.9]}
67... Rxd7 {[%clk 0:00:34.6]} 68. Kxd7 {[%clk 0:00:14.8]} 68... Kg6 {[%clk
0:00:26.4]} 69. Ke6 {[%clk 0:00:14.4]} 69... Kg7 {[%clk 0:00:24]} 70. f5 {[%clk
0:00:14.3]} 70... Kh6 {[%clk 0:00:22]} 71. Kxf6 {[%clk 0:00:15.2]} 71... Kh7
{[%clk 0:00:22.1]} 72. Kg5 {[%clk 0:00:15.5]} 72... Kg7 {[%clk 0:00:22.1]} 73.
Kxh5 {[%clk 0:00:16.4]} 1-0

[Event "*** Titled Tuesday Blitz"]
[Site "Chess.com"]
[Date "2020.10.27"]
[Round "1"]
[White "Michaelson_11"]
[Black "GameOverBro"]
[Result "1-0"]
[WhiteElo "2118"]
[BlackElo "2510"]
[TimeControl "180+1"]
[EndTime "10:08:42 PDT"]
[Termination "Michaelson_11 won by checkmate"]

1. e4 {[%clk 0:02:58.3]} 1... d6 {[%clk 0:03:00.4]} 2. d4 {[%clk 0:02:55.6]}
2... Nf6 {[%clk 0:03:00.9]} 3. Nc3 {[%clk 0:02:55.6]} 3... e5 {[%clk 0:03:00.3]}
4. Nf3 {[%clk 0:02:53.3]} 4... Nbd7 {[%clk 0:02:57.4]} 5. Bc4 {[%clk 0:02:51.3]}
5... Be7 {[%clk 0:02:57.6]} 6. O-O {[%clk 0:02:50.1]} 6... c6 {[%clk 0:02:57.3]}
7. a4 {[%clk 0:02:49.2]} 7... h6 {[%clk 0:02:57.6]} 8. h3 {[%clk 0:02:42.9]}
8... Qc7 {[%clk 0:02:58]} 9. Be3 {[%clk 0:02:42.3]} 9... Nf8 {[%clk 0:02:58.3]}
10. Bb3 {[%clk 0:02:28]} 10... Ng6 {[%clk 0:02:58]} 11. Ne2 {[%clk 0:02:18.7]}
11... Nxe4 {[%clk 0:02:55.1]} 12. Qd3 {[%clk 0:02:06.4]} 12... d5 {[%clk
0:02:43.6]} 13. c4 {[%clk 0:02:02.7]} 13... Bf5 {[%clk 0:02:15.9]} 14. g4 {[%clk
0:01:25.5]} 14... Be6 {[%clk 0:01:58.7]} 15. cxd5 {[%clk 0:01:01.9]} 15... cxd5
{[%clk 0:01:52.7]} 16. Rac1 {[%clk 0:01:01.1]} 16... Qd7 {[%clk 0:01:41.3]} 17.
dxe5 {[%clk 0:00:54.7]} 17... Bxg4 {[%clk 0:01:29.1]} 18. Bxd5 {[%clk
0:00:44.7]} 18... Bxf3 {[%clk 0:01:27.9]} 19. Bxf7+ {[%clk 0:00:44.4]} 19... Kd8
{[%clk 0:01:12.2]} 20. Qxd7+ {[%clk 0:00:32.9]} 20... Kxd7 {[%clk 0:01:13.1]}
21. Rfd1+ {[%clk 0:00:32.6]} 21... Bd6 {[%clk 0:00:55.4]} 22. Bxg6 {[%clk
0:00:31.7]} 22... Bxe2 {[%clk 0:00:54.2]} 23. Bxe4 {[%clk 0:00:31.4]} 23... Bxd1
{[%clk 0:00:54.1]} 24. Rxd1 {[%clk 0:00:31.9]} 24... Ke6 {[%clk 0:00:49.3]} 25.
exd6 {[%clk 0:00:28.4]} 25... Rhd8 {[%clk 0:00:48.3]} 26. Bxb7 {[%clk
0:00:22.6]} 26... Rab8 {[%clk 0:00:48.2]} 27. Bd5+ {[%clk 0:00:22.5]} 27... Ke5
{[%clk 0:00:48.6]} 28. Bxa7 {[%clk 0:00:19]} 28... Rb4 {[%clk 0:00:43.8]} 29.
Bf7 {[%clk 0:00:04.1]} 29... Rxa4 {[%clk 0:00:36.1]} 30. Bb6 {[%clk 0:00:02.9]}
30... Rxd6 {[%clk 0:00:17.2]} 31. Bc7 {[%clk 0:00:02.4]} 31... Kf6 {[%clk
0:00:18.1]} 32. Bxd6 {[%clk 0:00:02.5]} 32... Kxf7 {[%clk 0:00:18.6]} 33. b4
{[%clk 0:00:03.1]} 33... Ke6 {[%clk 0:00:18]} 34. Bc5 {[%clk 0:00:03.4]} 34...
Ra2 {[%clk 0:00:17.3]} 35. Kg2 {[%clk 0:00:03.4]} 35... Rb2 {[%clk 0:00:17.8]}
36. Re1+ {[%clk 0:00:03]} 36... Kd5 {[%clk 0:00:17.7]} 37. Re7 {[%clk
0:00:03.5]} 37... g5 {[%clk 0:00:17.8]} 38. Rh7 {[%clk 0:00:03.5]} 38... Ke4
{[%clk 0:00:17.5]} 39. Rxh6 {[%clk 0:00:03.7]} 39... Kf5 {[%clk 0:00:17.8]} 40.
Rh8 {[%clk 0:00:03.6]} 40... Rb1 {[%clk 0:00:17]} 41. Rf8+ {[%clk 0:00:03.5]}
41... Kg6 {[%clk 0:00:17.4]} 42. Rg8+ {[%clk 0:00:02.7]} 42... Kf7 {[%clk
0:00:17.2]} 43. Rxg5 {[%clk 0:00:02.5]} 43... Kf6 {[%clk 0:00:17.6]} 44. Rg3
{[%clk 0:00:02.7]} 44... Kf5 {[%clk 0:00:17.4]} 45. h4 {[%clk 0:00:02.9]} 45...
Ke4 {[%clk 0:00:18.3]} 46. h5 {[%clk 0:00:03.1]} 46... Ra1 {[%clk 0:00:18.5]}
47. h6 {[%clk 0:00:02.9]} 47... Ra8 {[%clk 0:00:18.9]} 48. h7 {[%clk 0:00:02.5]}
48... Rh8 {[%clk 0:00:19.4]} 49. Rh3 {[%clk 0:00:02.8]} 49... Kd5 {[%clk
0:00:19.5]} 50. Kh2 {[%clk 0:00:02.7]} 50... Ke4 {[%clk 0:00:19.2]} 51. Be7
{[%clk 0:00:02.8]} 51... Kf5 {[%clk 0:00:19]} 52. Bc5 {[%clk 0:00:02.6]} 52...
Ke4 {[%clk 0:00:18.9]} 53. b5 {[%clk 0:00:02.9]} 53... Kd5 {[%clk 0:00:18.9]}
54. Ba3 {[%clk 0:00:02.9]} 54... Rf8 {[%clk 0:00:14.9]} 55. Rh6 {[%clk 0:00:03]}
55... Rxf2+ {[%clk 0:00:15.8]} 56. Kg3 {[%clk 0:00:03.6]} 56... Ra2 {[%clk
0:00:15.3]} 57. h8=Q {[%clk 0:00:04.5]} 57... Rxa3+ {[%clk 0:00:16.2]} 58. Kg4
{[%clk 0:00:04.8]} 58... Ra4+ {[%clk 0:00:15.9]} 59. Kg5 {[%clk 0:00:04.9]}
59... Kc4 {[%clk 0:00:16.7]} 60. Qg8+ {[%clk 0:00:04.8]} 60... Kxb5 {[%clk
0:00:17.6]} 61. Qe8+ {[%clk 0:00:05]} 61... Kb4 {[%clk 0:00:17.2]} 62. Rh4+
{[%clk 0:00:04.3]} 62... Kc5 {[%clk 0:00:15.8]} 63. Qxa4 {[%clk 0:00:05.2]}
63... Kb6 {[%clk 0:00:16.7]} 64. Kf5 {[%clk 0:00:05.1]} 64... Kc7 {[%clk
0:00:17.6]} 65. Rh6 {[%clk 0:00:04.1]} 65... Kb7 {[%clk 0:00:17.6]} 66. Qd7+
{[%clk 0:00:04.2]} 66... Kb8 {[%clk 0:00:18.5]} 67. Rh8# {[%clk 0:00:04.9]} 1-0

[Event "*** Titled Tuesday Blitz"]
[Site "Chess.com"]
[Date "2020.10.27"]
[Round "1"]
[White "maciek_92"]
[Black "MateusViageiro"]
[Result "1-0"]
[WhiteElo "2697"]
[BlackElo "2348"]
[TimeControl "180+1"]
[EndTime "10:08:43 PDT"]
[Termination "maciek_92 won on time"]

1. e4 {[%clk 0:03:00.1]} 1... c5 {[%clk 0:02:58]} 2. Nf3 {[%clk 0:02:59.6]} 2...
d6 {[%clk 0:02:57.2]} 3. d4 {[%clk 0:03:00.2]} 3... cxd4 {[%clk 0:02:56.5]} 4.
Nxd4 {[%clk 0:03:01.1]} 4... Nf6 {[%clk 0:02:56.3]} 5. Nc3 {[%clk 0:03:01.7]}
5... a6 {[%clk 0:02:56.8]} 6. Bg5 {[%clk 0:03:00.9]} 6... e6 {[%clk 0:02:56.2]}
7. f4 {[%clk 0:02:59.3]} 7... Qc7 {[%clk 0:02:52.6]} 8. Qf3 {[%clk 0:02:58]}
8... Nbd7 {[%clk 0:02:52]} 9. O-O-O {[%clk 0:02:58.3]} 9... b5 {[%clk
0:02:51.8]} 10. a3 {[%clk 0:02:45]} 10... Bb7 {[%clk 0:02:51.7]} 11. g4 {[%clk
0:02:44.4]} 11... d5 {[%clk 0:02:45.8]} 12. e5 {[%clk 0:01:36.2]} 12... Ne4
{[%clk 0:02:39.9]} 13. Nxe4 {[%clk 0:01:35.1]} 13... dxe4 {[%clk 0:02:39.4]} 14.
Qe2 {[%clk 0:01:29.4]} 14... Bc5 {[%clk 0:01:47.5]} 15. Nb3 {[%clk 0:01:25]}
15... Rc8 {[%clk 0:01:35.7]} 16. Bg2 {[%clk 0:01:22.7]} 16... Bd5 {[%clk
0:01:13.7]} 17. Kb1 {[%clk 0:01:16.7]} 17... Qb7 {[%clk 0:01:10.5]} 18. Rhe1
{[%clk 0:01:09.9]} 18... b4 {[%clk 0:01:06.1]} 19. axb4 {[%clk 0:01:06.6]} 19...
Bxb4 {[%clk 0:01:03.2]} 20. Bxe4 {[%clk 0:00:49.8]} 20... Nb6 {[%clk 0:00:49.9]}
21. Bxd5 {[%clk 0:00:44.4]} 21... Nxd5 {[%clk 0:00:48.2]} 22. Rf1 {[%clk
0:00:43]} 22... a5 {[%clk 0:00:42.8]} 23. Nd4 {[%clk 0:00:32.9]} 23... Rb8
{[%clk 0:00:37.2]} 24. Qc4 {[%clk 0:00:15.8]} 24... O-O {[%clk 0:00:34.1]} 25.
Qc6 {[%clk 0:00:15.7]} 25... Bc3 {[%clk 0:00:20.6]} 26. Qxb7 {[%clk 0:00:15.1]}
26... Rxb7 {[%clk 0:00:21.5]} 27. Nb3 {[%clk 0:00:12.9]} 27... a4 {[%clk
0:00:20.9]} 28. Rxd5 {[%clk 0:00:06.9]} 28... exd5 {[%clk 0:00:17.4]} 29. bxc3
{[%clk 0:00:04.9]} 29... axb3 {[%clk 0:00:17.7]} 30. Rd1 {[%clk 0:00:05.8]}
30... bxc2+ {[%clk 0:00:17]} 31. Kxc2 {[%clk 0:00:06.7]} 31... Ra8 {[%clk
0:00:17]} 32. Rxd5 {[%clk 0:00:06.7]} 32... h6 {[%clk 0:00:17.4]} 33. Bh4 {[%clk
0:00:06.2]} 33... Ra2+ {[%clk 0:00:17.7]} 34. Kd3 {[%clk 0:00:06.6]} 34... Rxh2
{[%clk 0:00:18.2]} 35. Be1 {[%clk 0:00:07.3]} 35... Rh1 {[%clk 0:00:17.9]} 36.
Bf2 {[%clk 0:00:07.4]} 36... Rd1+ {[%clk 0:00:17.6]} 37. Kc4 {[%clk 0:00:08]}
37... Rc7+ {[%clk 0:00:16.7]} 38. Bc5 {[%clk 0:00:08]} 38... Rf1 {[%clk
0:00:15.9]} 39. Rd4 {[%clk 0:00:07.3]} 39... Rg1 {[%clk 0:00:15.7]} 40. f5
{[%clk 0:00:07.2]} 40... Rf1 {[%clk 0:00:15.2]} 41. Kd5 {[%clk 0:00:07.3]} 41...
h5 {[%clk 0:00:14.4]} 42. gxh5 {[%clk 0:00:06.7]} 42... Rxf5 {[%clk 0:00:14.4]}
43. Re4 {[%clk 0:00:06.2]} 43... Rxh5 {[%clk 0:00:14.1]} 44. c4 {[%clk
0:00:07.1]} 44... Rh1 {[%clk 0:00:13.7]} 45. Bd6 {[%clk 0:00:06.5]} 45... Rc8
{[%clk 0:00:13.7]} 46. c5 {[%clk 0:00:06.6]} 46... g5 {[%clk 0:00:14]} 47. e6
{[%clk 0:00:06.7]} 47... Kh7 {[%clk 0:00:13.5]} 48. e7 {[%clk 0:00:06.9]} 48...
Re8 {[%clk 0:00:09.7]} 49. c6 {[%clk 0:00:07.2]} 49... f5 {[%clk 0:00:10.2]} 50.
Re5 {[%clk 0:00:06.6]} 50... f4 {[%clk 0:00:10.1]} 51. Rxg5 {[%clk 0:00:06.4]}
51... f3 {[%clk 0:00:09.8]} 52. Rf5 {[%clk 0:00:06.6]} 52... Rh3 {[%clk
0:00:08.5]} 53. Ke6 {[%clk 0:00:06.7]} 53... Kg6 {[%clk 0:00:09]} 54. Rf6+
{[%clk 0:00:06.3]} 54... Kg5 {[%clk 0:00:08.1]} 55. Rf8 {[%clk 0:00:06.5]} 55...
Rh6+ {[%clk 0:00:07.5]} 56. Kd7 {[%clk 0:00:06.8]} 56... Rh8 {[%clk 0:00:07.4]}
57. Rxh8 {[%clk 0:00:06.5]} 57... Rxh8 {[%clk 0:00:05.5]} 58. Bc5 {[%clk
0:00:06.2]} 58... Rh7 {[%clk 0:00:01]} 59. c7 {[%clk 0:00:05.4]} 1-0

[Event "*** Titled Tuesday Blitz"]
[Site "Chess.com"]
[Date "2020.10.27"]
[Round "1"]
[White "VladaSviridova"]
[Black "SamuelGhimpu2003"]
[Result "0-1"]
[WhiteElo "2273"]
[BlackElo "2608"]
[TimeControl "180+1"]
[EndTime "10:08:44 PDT"]
[Termination "SamuelGhimpu2003 won by resignation"]

1. d4 {[%clk 0:03:00.9]} 1... Nf6 {[%clk 0:03:00]} 2. c4 {[%clk 0:03:00.8]} 2...
g6 {[%clk 0:03:00]} 3. Nc3 {[%clk 0:03:00.6]} 3... d5 {[%clk 0:03:00.7]} 4. cxd5
{[%clk 0:03:00.8]} 4... Nxd5 {[%clk 0:03:01.6]} 5. e4 {[%clk 0:03:01.4]} 5...
Nxc3 {[%clk 0:03:02.3]} 6. bxc3 {[%clk 0:03:02]} 6... Bg7 {[%clk 0:03:02.7]} 7.
Bc4 {[%clk 0:03:02.7]} 7... c5 {[%clk 0:03:02.8]} 8. Ne2 {[%clk 0:03:03.4]} 8...
Nc6 {[%clk 0:03:03.4]} 9. Be3 {[%clk 0:03:03.7]} 9... O-O {[%clk 0:03:03.7]} 10.
O-O {[%clk 0:03:03.8]} 10... Qc7 {[%clk 0:03:04.3]} 11. Rc1 {[%clk 0:03:02.4]}
11... b6 {[%clk 0:03:04.3]} 12. Qd2 {[%clk 0:02:56]} 12... Bb7 {[%clk 0:03:04]}
13. Rfd1 {[%clk 0:02:54.5]} 13... Rad8 {[%clk 0:03:03.7]} 14. Bf4 {[%clk
0:02:48.2]} 14... e5 {[%clk 0:02:51.4]} 15. Bg5 {[%clk 0:02:45.8]} 15... Rd6
{[%clk 0:02:33.9]} 16. Bd5 {[%clk 0:02:06]} 16... Qd7 {[%clk 0:02:16.4]} 17.
Bxc6 {[%clk 0:02:00.6]} 17... Bxc6 {[%clk 0:02:17.3]} 18. d5 {[%clk 0:02:00.7]}
18... Ba4 {[%clk 0:02:17.5]} 19. Rf1 {[%clk 0:01:57.6]} 19... c4 {[%clk
0:02:17.9]} 20. Bh6 {[%clk 0:01:31]} 20... f5 {[%clk 0:02:03.8]} 21. Bxg7 {[%clk
0:01:30.8]} 21... Kxg7 {[%clk 0:02:04.7]} 22. f3 {[%clk 0:01:27.5]} 22... Rdf6
{[%clk 0:01:57.3]} 23. h3 {[%clk 0:01:17.2]} 23... f4 {[%clk 0:01:32.3]} 24. Qb2
{[%clk 0:01:14.2]} 24... g5 {[%clk 0:01:22.9]} 25. Qb4 {[%clk 0:01:08.3]} 25...
a5 {[%clk 0:01:15.4]} 26. Qb2 {[%clk 0:00:57.1]} 26... h5 {[%clk 0:01:15.3]} 27.
Qd2 {[%clk 0:00:56.5]} 27... Qd6 {[%clk 0:01:11.3]} 28. Qe1 {[%clk 0:00:51.7]}
28... Rg6 {[%clk 0:01:07]} 29. g4 {[%clk 0:00:40.6]} 29... fxg3 {[%clk
0:00:45.2]} 30. Nxg3 {[%clk 0:00:37.9]} 30... Bd7 {[%clk 0:00:46.1]} 31. Kh2
{[%clk 0:00:29.1]} 31... h4 {[%clk 0:00:39.8]} 32. Ne2 {[%clk 0:00:23.9]} 32...
Rgf6 {[%clk 0:00:34.5]} 33. Ng1 {[%clk 0:00:23.4]} 33... Rf4 {[%clk 0:00:31.2]}
34. Qe2 {[%clk 0:00:21.2]} 34... b5 {[%clk 0:00:30.4]} 35. Kg2 {[%clk
0:00:17.1]} 35... Qg6 {[%clk 0:00:28]} 36. Kh2 {[%clk 0:00:17.1]} 36... Qh5
{[%clk 0:00:27.3]} 37. Kg2 {[%clk 0:00:16.8]} 37... Qf7 {[%clk 0:00:16.2]} 38.
Qe3 {[%clk 0:00:16.7]} 38... Qg6 {[%clk 0:00:11.5]} 39. Qc5 {[%clk 0:00:16.2]}
39... R8f7 {[%clk 0:00:11]} 40. Qe3 {[%clk 0:00:13.9]} 40... Kh7 {[%clk
0:00:09.2]} 41. Qc5 {[%clk 0:00:13.3]} 41... Kh6 {[%clk 0:00:03.8]} 42. d6
{[%clk 0:00:13.2]} 42... Qe6 {[%clk 0:00:03.6]} 43. Qd5 {[%clk 0:00:12.7]} 43...
Kh7 {[%clk 0:00:03.7]} 44. Qxe6 {[%clk 0:00:12.3]} 44... Bxe6 {[%clk 0:00:04.6]}
45. Rb1 {[%clk 0:00:12.4]} 45... Rd7 {[%clk 0:00:05.1]} 46. Rxb5 {[%clk
0:00:11.9]} 46... Rxd6 {[%clk 0:00:05.6]} 47. Rxe5 {[%clk 0:00:11.4]} 47... Kg6
{[%clk 0:00:06.3]} 48. Rxa5 {[%clk 0:00:11]} 48... Rd3 {[%clk 0:00:06.3]} 49.
Ra6 {[%clk 0:00:09.8]} 49... Kf7 {[%clk 0:00:06.6]} 50. Ne2 {[%clk 0:00:09.8]}
50... Rf6 {[%clk 0:00:05.1]} 51. Rf2 {[%clk 0:00:08.5]} 51... Bxh3+ {[%clk
0:00:05.4]} 52. Kxh3 {[%clk 0:00:08.4]} 52... Rxa6 {[%clk 0:00:06.3]} 53. Kg4
{[%clk 0:00:08.1]} 53... Kg6 {[%clk 0:00:06]} 54. Nd4 {[%clk 0:00:07.5]} 54...
Rxc3 {[%clk 0:00:05.4]} 55. Nf5 {[%clk 0:00:07.6]} 55... Rca3 {[%clk 0:00:04.9]}
56. Rd2 {[%clk 0:00:07.4]} 56... c3 {[%clk 0:00:04.9]} 57. Rd7 {[%clk
0:00:07.3]} 57... Rc6 {[%clk 0:00:04.1]} 58. Rg7+ {[%clk 0:00:07]} 58... Kf6
{[%clk 0:00:04.1]} 59. Rxg5 {[%clk 0:00:06.6]} 59... c2 {[%clk 0:00:03.3]} 60.
f4 {[%clk 0:00:06.5]} 60... c1=Q {[%clk 0:00:03.4]} 61. e5+ {[%clk 0:00:06.7]}
61... Ke6 {[%clk 0:00:03.6]} 62. Nd4+ {[%clk 0:00:05.6]} 62... Kd5 {[%clk
0:00:04]} 63. Nxc6 {[%clk 0:00:05.5]} 63... Qxc6 {[%clk 0:00:04.4]} 64. e6+
{[%clk 0:00:04.8]} 64... Kd4 {[%clk 0:00:02.5]} 0-1

[Event "*** Titled Tuesday Blitz"]
[Site "Chess.com"]
[Date "2020.10.27"]
[Round "1"]
[White "venus02"]
[Black "gagtemp"]
[Result "1/2-1/2"]
[WhiteElo "2499"]
[BlackElo "1960"]
[TimeControl "180+1"]
[EndTime "10:08:45 PDT"]
[Termination "Game drawn by repetition"]

1. e4 {[%clk 0:02:59.6]} 1... d5 {[%clk 0:02:59.4]} 2. exd5 {[%clk 0:02:59.4]}
2... Qxd5 {[%clk 0:03:00.3]} 3. Nc3 {[%clk 0:02:59.2]} 3... Qd6 {[%clk
0:03:00.4]} 4. d4 {[%clk 0:02:58.8]} 4... Nf6 {[%clk 0:03:00.7]} 5. Nf3 {[%clk
0:02:58.6]} 5... a6 {[%clk 0:03:00.2]} 6. g3 {[%clk 0:02:54.8]} 6... Bg4 {[%clk
0:02:59.8]} 7. Bg2 {[%clk 0:02:53.9]} 7... Nc6 {[%clk 0:02:58.9]} 8. Be3 {[%clk
0:02:50.5]} 8... O-O-O {[%clk 0:02:57.6]} 9. h3 {[%clk 0:02:49.9]} 9... Bh5
{[%clk 0:02:56.7]} 10. O-O {[%clk 0:02:32.1]} 10... e5 {[%clk 0:02:55.8]} 11.
dxe5 {[%clk 0:02:22.3]} 11... Nxe5 {[%clk 0:02:56.7]} 12. Qxd6 {[%clk
0:02:19.9]} 12... Bxd6 {[%clk 0:02:53.8]} 13. Nxe5 {[%clk 0:02:09.7]} 13... Bxe5
{[%clk 0:02:54.7]} 14. Rac1 {[%clk 0:02:00.4]} 14... Bg6 {[%clk 0:02:41.5]} 15.
Rfe1 {[%clk 0:01:39]} 15... Rhe8 {[%clk 0:02:39.7]} 16. a3 {[%clk 0:01:24.1]}
16... Bxc3 {[%clk 0:02:27.7]} 17. bxc3 {[%clk 0:01:22.4]} 17... Nd5 {[%clk
0:02:22.7]} 18. Bd4 {[%clk 0:01:13.3]} 18... Rxe1+ {[%clk 0:02:10.8]} 19. Rxe1
{[%clk 0:01:11.9]} 19... f6 {[%clk 0:01:47.6]} 20. Re2 {[%clk 0:01:09.5]} 20...
Nb6 {[%clk 0:01:33.6]} 21. Bxb6 {[%clk 0:01:06.5]} 21... cxb6 {[%clk 0:01:32.8]}
22. Re7 {[%clk 0:01:06]} 22... Rd7 {[%clk 0:01:31.6]} 23. Rxd7 {[%clk 0:01:02]}
23... Kxd7 {[%clk 0:01:30.9]} 24. Bxb7 {[%clk 0:01:02.5]} 24... a5 {[%clk
0:01:28]} 25. Kf1 {[%clk 0:01:01.7]} 25... Bxc2 {[%clk 0:01:27.1]} 26. Ke2
{[%clk 0:01:02]} 26... Kd6 {[%clk 0:01:24.2]} 27. Kd2 {[%clk 0:01:01.5]} 27...
Bb3 {[%clk 0:01:17.5]} 28. Be4 {[%clk 0:00:59.2]} 28... h6 {[%clk 0:01:16]} 29.
h4 {[%clk 0:00:57.1]} 29... Bd5 {[%clk 0:01:13.4]} 30. Bd3 {[%clk 0:00:51.4]}
30... g5 {[%clk 0:01:06.2]} 31. f4 {[%clk 0:00:38]} 31... gxh4 {[%clk
0:01:00.3]} 32. gxh4 {[%clk 0:00:37.7]} 32... Kc5 {[%clk 0:00:55.5]} 33. Kc2
{[%clk 0:00:37]} 33... Bc4 {[%clk 0:00:53]} 34. Bh7 {[%clk 0:00:35.9]} 34... Kb5
{[%clk 0:00:47.9]} 35. Bg6 {[%clk 0:00:30.5]} 35... Ka4 {[%clk 0:00:42.9]} 36.
Kb2 {[%clk 0:00:30.5]} 36... Kb5 {[%clk 0:00:40.6]} 37. Be4 {[%clk 0:00:26.1]}
37... Kc5 {[%clk 0:00:40.2]} 38. Kc2 {[%clk 0:00:26.4]} 38... Bd5 {[%clk
0:00:38.2]} 39. Bg6 {[%clk 0:00:23.9]} 39... Kc4 {[%clk 0:00:31.4]} 40. Bd3+
{[%clk 0:00:22.8]} 40... Kc5 {[%clk 0:00:31.3]} 41. Kb2 {[%clk 0:00:22.1]} 41...
Bf3 {[%clk 0:00:30.1]} 42. Bg6 {[%clk 0:00:20]} 42... Bd5 {[%clk 0:00:29.8]} 43.
Kc2 {[%clk 0:00:19.3]} 43... Kc4 {[%clk 0:00:28.6]} 44. Kb2 {[%clk 0:00:16.9]}
44... Bf3 {[%clk 0:00:28]} 45. Bc2 {[%clk 0:00:16.2]} 45... Bc6 {[%clk
0:00:26.4]} 46. Bh7 {[%clk 0:00:15.2]} 46... b5 {[%clk 0:00:24.8]} 47. Kc2
{[%clk 0:00:14.6]} 47... b4 {[%clk 0:00:24.5]} 48. Bd3+ {[%clk 0:00:14.6]} 48...
Kc5 {[%clk 0:00:23.3]} 49. axb4+ {[%clk 0:00:13.5]} 49... axb4 {[%clk
0:00:22.8]} 50. cxb4+ {[%clk 0:00:12.4]} 50... Kxb4 {[%clk 0:00:23.1]} 51. Kd2
{[%clk 0:00:13.1]} 51... Kc5 {[%clk 0:00:21.2]} 52. Ke3 {[%clk 0:00:13.7]} 52...
Kd6 {[%clk 0:00:20.5]} 53. Kd4 {[%clk 0:00:13.8]} 53... Bd5 {[%clk 0:00:19.1]}
54. Bg6 {[%clk 0:00:13.2]} 54... Bc6 {[%clk 0:00:18.6]} 55. Bh7 {[%clk
0:00:12.8]} 55... Bd5 {[%clk 0:00:18.3]} 56. Bf5 {[%clk 0:00:12.9]} 56... Bf3
{[%clk 0:00:17.9]} 57. Bc2 {[%clk 0:00:12.5]} 57... Bc6 {[%clk 0:00:17.9]} 58.
Bb3 {[%clk 0:00:12.5]} 58... Bf3 {[%clk 0:00:17.5]} 59. Ke3 {[%clk 0:00:12.4]}
59... Bc6 {[%clk 0:00:17.1]} 60. Ba2 {[%clk 0:00:10.4]} 60... Bd5 {[%clk
0:00:16.4]} 61. Bb1 {[%clk 0:00:09.8]} 61... Bc4 {[%clk 0:00:15.4]} 62. Kd4
{[%clk 0:00:09.9]} 62... Bd5 {[%clk 0:00:15.3]} 63. Be4 {[%clk 0:00:08.8]} 63...
Bxe4 {[%clk 0:00:14.7]} 64. Kxe4 {[%clk 0:00:09.2]} 64... Ke6 {[%clk 0:00:14.9]}
65. h5 {[%clk 0:00:06.5]} 65... f5+ {[%clk 0:00:13.6]} 66. Kd4 {[%clk
0:00:06.6]} 66... Kd6 {[%clk 0:00:13.8]} 67. Kc4 {[%clk 0:00:07.2]} 67... Kc6
{[%clk 0:00:13.9]} 68. Kd4 {[%clk 0:00:07.2]} 68... Kd6 {[%clk 0:00:14]} 69. Kc4
{[%clk 0:00:07.5]} 69... Kc6 {[%clk 0:00:14.2]} 70. Kd4 {[%clk 0:00:07.5]} 70...
Kd6 {[%clk 0:00:14.4]} 1/2-1/2